[Event "28th WSCC Women 65 2018"]
[Site "Bled"]
[Date "2018.11.21"]
[Round "4"]
[White "Serjmyadag, Damdin"]
[Black "Kabanova, Irina"]
[Result "1-0"]
[ECO "B40"]
[WhiteElo "1864"]
[BlackElo "1856"]
[Annotator "NA RC"]
[PlyCount "137"]
[EventDate "2018.11.17"]
[EventType "swiss"]
[EventCountry "SLO"]
[SourceTitle "playchess.com"]
[Source "ChessBase"]
[SourceQuality "1"]
[TimeControl "40/5400+30:1800+30"]

1. e4 {[%emt 0:00:00]} c5 {[%emt 0:00:00]} 2. Nf3 {[%emt 0:00:08]} e6 {[%emt 0:00:02]} 3. c4 {[%emt 0:01:25]} Nc6 {[%emt 0:01:44]} 4. Nc3 {[%emt 0:00:34]} a6 {[%emt 0:04:09]} 5. d3 {[%emt 0:02:04]} Qc7 {[%emt 0:02:17] B40: Sicilian: 2...e6, Unusual lines} 6. Be3 {[%emt 0:01:28]} (6. g3 d6 7. Bg2 Nf6 8. O-O Be7 9. h3 O-O 10. Be3 Rb8 11. d4 cxd4 12. Nxd4 Nxd4 {½-½ (12) Toma,K (2305)-Przezdziecka,M (2297) Erice 2013}) 6... Nf6 {[%emt 0:02:38]} 7. Qd2 {[%emt 0:02:24]} Be7 {[%emt 0:04:56]} 8. Be2 {[%emt 0:02:38]} d6 $146 {[%emt 0:04:10]} ({Predecessor:} 8... O-O 9. Bf4 d6 10. O-O Rd8 11. h3 {0-1 (32) Ginosa,N-Okawati,G Maringa 2011}) 9. d4 {[%emt 0:04:47]} cxd4 {[%emt 0:01:49]} 10. Nxd4 {[%emt 0:00:48]} Bd7 {[%emt 0:10:47]} 11. f4 {[%emt 0:03:21]} Nxd4 {[%emt 0:15:31]} 12. Bxd4 {[%emt 0:01:04]} Bc6 {[%emt 0:00:27]} 13. Bf3 {[%emt 0:05:45]} O-O {[%emt 0:06:25]} 14. O-O {[%emt 0:00:50]} e5 {[%emt 0:02:48]} 15. Be3 {[%emt 0:00:39]} Rac8 {[%emt 0:05:30]} 16. Rac1 {[%emt 0:01:57]} Qd7 {[%emt 0:01:07]} 17. h3 {[%emt 0:03:31]} Qd8 {[%emt 0:02:15]} 18. Rfd1 {[%emt 0:01:10]} Nd7 {[%emt 0:04:50]} 19. Bg4 {[%emt 0:04:44]} Rb8 {[%emt 0:00:56]} 20. Bxd7 {[%emt 0:05:15]} exf4 {[%emt 0:01:08]} 21. Bxf4 {[%emt 0:02:17]} Bxd7 {[%emt 0:04:20]} 22. Nd5 {[%emt 0:12:21]} Bc6 {[%emt 0:06:54]} 23. Nxe7+ {[%emt 0:05:02]} Qxe7 {[%emt 0:00:01]} 24. Bxd6 {[%emt 0:00:52]} Qxe4 {[%emt 0:00:36]} 25. Bxb8 {[%emt 0:00:20]} Rxb8 {[%emt 0:01:45]} 26. Re1 {[%emt 0:02:56]} Qh4 {[%emt 0:01:25]} 27. Qf2 {[%emt 0:01:26]} Qg5 {[%emt 0:01:37]} 28. Rcd1 {[%emt 0:00:35]} Rf8 {[%emt 0:08:08]} 29. Rd3 {[%emt 0:04:06]} g6 {[%emt 0:02:19]} 30. Rg3 {[%emt 0:00:54]} Qa5 {[%emt 0:00:18]} 31. b3 {[%emt 0:00:29]} Qc7 {[%emt 0:01:02]} 32. Rge3 {[%emt 0:00:22]} Qd6 {[%emt 0:01:16]} 33. R3e2 {[%emt 0:00:33]} Kg7 {[%emt 0:00:20]} 34. Rd2 {[%emt 0:00:33]} Qf6 {[%emt 0:00:53]} 35. Qxf6+ {[%emt 0:00:31]} Kxf6 {[%emt 0:00:04]} 36. Red1 {[%emt 0:00:17]} Re8 {[%emt 0:00:11]} 37. Rf1+ {[%emt 0:01:15]} Kg7 {[%emt 0:00:02]} 38. Rdf2 {[%emt 0:00:51]} Re7 {[%emt 0:00:11]} 39. g4 {[%emt 0:01:26]} h6 {[%emt 0:01:14]} 40. Kh2 {[%emt 0:00:00]} Bd7 {[%emt 0:00:00]} 41. Kg3 {[%emt 0:04:25]} Bc6 {[%emt 0:01:52]} 42. Kh2 {[%emt 0:01:24]} Bd7 {[%emt 0:01:01]} 43. Rd1 {[%emt 0:00:29]} Bc6 {[%emt 0:01:17]} 44. h4 {[%emt 0:01:22]} Bd7 {[%emt 0:01:35]} 45. g5 {[%emt 0:01:27]} hxg5 {[%emt 0:00:33]} 46. hxg5 {[%emt 0:00:01]} Bc6 {[%emt 0:00:26]} 47. Rdf1 {[%emt 0:00:37]} Bd7 {[%emt 0:00:30]} 48. Rf4 {[%emt 0:01:39]} Bc6 {[%emt 0:03:09]} 49. R1f2 {[%emt 0:01:11]} Bd7 {[%emt 0:00:41]} 50. Kg3 {[%emt 0:05:01]} Bc6 {[%emt 0:00:27]} 51. Rh2 {[%emt 0:02:15]} Re5 {[%emt 0:01:34]} 52. Kh4 {[%emt 0:02:05]} Re7 {[%emt 0:01:31]} 53. Rhf2 {[%emt 0:01:40]} Bd7 {[%emt 0:00:42]} 54. Rd4 {[%emt 0:02:01]} Bc6 {[%emt 0:00:33]} 55. b4 {[%emt 0:04:32]} Bd7 {[%emt 0:05:24]} 56. Rb2 {[%emt 0:00:39]} Bc6 {[%emt 0:03:24]} 57. b5 {[%emt 0:00:30]} axb5 {[%emt 0:00:24]} 58. cxb5 {[%emt 0:00:03]} Bd7 {[%emt 0:06:49]} 59. a4 {[%emt 0:00:31]} Bf5 {[%emt 0:00:20]} 60. Kg3 {[%emt 0:05:53]} f6 {[%emt 0:01:20]} 61. gxf6+ {[%emt 0:00:40]} Kxf6 {[%emt 0:00:01]} 62. Rd6+ {[%emt 0:01:29]} Kg5 {[%emt 0:01:15]} 63. Rb3 {[%emt 0:01:03]} Re4 {[%emt 0:01:37]} 64. Ra3 {[%emt 0:01:20]} Rg4+ {[%emt 0:00:21]} 65. Kf2 {[%emt 0:01:46]} Be4 $18 {[%emt 0:01:13]} (65... Rb4 $142 66. Rb6 Be4) 66. Rg3 {[%emt 0:00:28]} Rxg3 {[%emt 0:01:14]} 67. Kxg3 {[%emt 0:00:10]} Kf5 {[%emt 0:00:05]} 68. a5 {[%emt 0:00:27]} Ke5 {[%emt 0:00:23]} 69. Rd2 {[%emt 0:00:12]} 1-0

[Event "28th WSCC Women 65 2018"]
[Site "Bled"]
[Date "2018.11.21"]
[Round "4"]
[White "Tsygankova, Enni"]
[Black "Khmiadashvili, Tamar"]
[Result "0-1"]
[ECO "D02"]
[WhiteElo "1760"]
[BlackElo "2010"]
[Annotator "NA RC"]
[PlyCount "54"]
[EventDate "2018.11.17"]
[EventType "swiss"]
[EventCountry "SLO"]
[SourceTitle "playchess.com"]
[Source "ChessBase"]
[SourceQuality "1"]
[TimeControl "40/5400+30:1800+30"]

1. d4 d5 2. Bf4 Nf6 3. e3 e6 4. Nf3 Be7 5. Bd3 b6 6. h3 Bb7 7. O-O Nbd7 8. Nbd2 O-O 9. a3 c5 10. c3 Ne4 11. Bb5 Ndf6 12. Nxe4 dxe4 13. Nd2 Nd5 14. Bg3 f5 15. Bc4 Bd6 16. Bxd6 Qxd6 17. Bxd5 exd5 18. dxc5 bxc5 19. b4 Ba6 20. c4 dxc4 21. b5 Bxb5 22. Re1 Rfd8 23. Nf1 Qxd1 24. Rexd1 Rd3 25. a4 Ba6 26. Rab1 Rad8 27. Rdc1 Rb3 0-1

[Event "28th WSCC Women 65 2018"]
[Site "Bled"]
[Date "2018.11.22"]
[Round "5"]
[White "Tsifanskaya, Ludmila A"]
[Black "Ristoja, Aulikki"]
[Result "1-0"]
[ECO "B01"]
[WhiteElo "1996"]
[BlackElo "1505"]
[Annotator "NA RC"]
[PlyCount "130"]
[EventDate "2018.11.17"]
[EventType "swiss"]
[EventCountry "SLO"]
[SourceTitle "playchess.com"]
[Source "ChessBase"]
[SourceQuality "1"]
[TimeControl "40/5400+30:1800+30"]

1. e4 {[%emt 0:00:00]} d5 {[%emt 0:00:00]} 2. exd5 {[%emt 0:00:00]} Qxd5 {[%emt 0:00:00]} 3. Nc3 {[%emt 0:00:00]} Qa5 {[%emt 0:00:00]} 4. d4 {[%emt 0:00:00]} c6 {[%emt 0:00:49]} 5. Bc4 {[%emt 0:00:59]} Nf6 {[%emt 0:00:53]} 6. Bd2 {[%emt 0:00:41]} Qb6 {[%emt 0:00:47]} 7. Nge2 {[%emt 0:07:44] B01: Scandinavian Defence} (7. Nf3 Bf5 8. Qe2 e6 9. O-O-O Be7 10. Ne5 Nbd7 11. h3 Qxd4 12. Nxd7 Nxd7 13. Be3 Qf6 14. g4 Bg6 15. h4 {1-0 (56) Zhao,Z (2543)-Peng,X (2410) Sanya City 2017}) 7... Bf5 {[%emt 0:04:22]} 8. Bb3 {[%emt 0:06:44]} e6 {[%emt 0:01:20]} 9. O-O {[%emt 0:05:30]} Bd6 {[%emt 0:00:52]} 10. Bf4 {[%emt 0:04:15]} Bxf4 {[%emt 0:04:57]} 11. Nxf4 {[%emt 0:05:34]} O-O {[%emt 0:01:11]} 12. Nce2 {[%emt 0:03:50]} h6 $146 {[%emt 0:01:50]} ({Predecessor:} 12... Rd8 13. c3 Nbd7 {0-1 (34) Tagnon,N (2070)-Flear,C (2185) France 1993}) 13. Ng3 {[%emt 0:03:31]} Bh7 {[%emt 0:00:50]} 14. c3 {[%emt 0:00:31]} Qc7 {[%emt 0:02:31]} 15. Qf3 {[%emt 0:03:44]} a5 {[%emt 0:01:21]} 16. Bc4 {[%emt 0:02:26]} Nbd7 {[%emt 0:02:37]} 17. Bd3 {[%emt 0:00:39]} Bxd3 {[%emt 0:02:38]} 18. Nxd3 {[%emt 0:00:02]} Rfd8 {[%emt 0:03:06]} 19. Rad1 {[%emt 0:04:32]} b6 {[%emt 0:05:59]} 20. Ne4 {[%emt 0:19:48]} Nxe4 {[%emt 0:01:04]} 21. Qxe4 {[%emt 0:00:01]} Nf6 {[%emt 0:01:14]} 22. Qf3 {[%emt 0:01:39]} Rac8 {[%emt 0:01:59]} 23. g3 {[%emt 0:03:09]} Qd6 {[%emt 0:04:17]} 24. a3 {[%emt 0:04:34]} Qd5 {[%emt 0:01:19]} 25. Qe2 {[%emt 0:02:06]} Qe4 {[%emt 0:12:57]} 26. Qxe4 {[%emt 0:00:46]} Nxe4 {[%emt 0:00:03]} 27. Ne5 {[%emt 0:01:02]} Nf6 {[%emt 0:01:55]} 28. Nc4 {[%emt 0:02:53]} Nd5 {[%emt 0:02:27]} 29. Rfe1 {[%emt 0:00:42]} Kf8 {[%emt 0:06:08]} 30. f4 {[%emt 0:04:59]} a4 {[%emt 0:02:36]} 31. Ne5 {[%emt 0:01:39]} Ne7 {[%emt 0:11:24]} 32. Kf2 {[%emt 0:03:37]} c5 {[%emt 0:04:29]} 33. dxc5 {[%emt 0:00:22]} Rxd1 {[%emt 0:00:47]} 34. Rxd1 {[%emt 0:00:03]} bxc5 {[%emt 0:00:58]} 35. Nd7+ {[%emt 0:00:48]} ({White should play} 35. Rd6 $16) 35... Ke8 $1 {[%emt 0:00:34]} 36. Nb6 {[%emt 0:00:06]} Rb8 {[%emt 0:05:19]} (36... Rc6 $1 $11 {remains equal.} 37. Nxa4 c4) 37. Nxa4 {[%emt 0:00:24]} Rb5 {[%emt 0:00:22]} (37... Nd5 $16) 38. c4 {[%emt 0:01:47]} Ra5 {[%emt 0:03:05]} 39. Nc3 {[%emt 0:00:06]} Nf5 {[%emt 0:00:16]} 40. Rd2 {[%emt 0:00:00]} Nd4 {[%emt 0:00:00]} (40... Ke7 $16 41. Rd3 Nd6) 41. Ne2 {[%emt 0:03:01]} Nc6 {[%emt 0:05:09]} 42. Rd6 {[%emt 0:05:27]} Ra6 {[%emt 0:02:45] [#]} (42... Ne7 $16) 43. Nc3 $1 {[%emt 0:00:55]} Ke7 {[%emt 0:01:31]} 44. Rd2 {[%emt 0:01:45]} Nd4 {[%emt 0:05:01]} 45. Ne4 {[%emt 0:05:18]} Nb3 {[%emt 0:01:16]} 46. Rd3 {[%emt 0:00:47]} Rb6 {[%emt 0:00:50]} 47. Ke3 {[%emt 0:04:39]} f5 {[%emt 0:02:20]} 48. Nd2 {[%emt 0:00:49]} Nc1 {[%emt 0:06:18]} 49. Rc3 {[%emt 0:00:13]} Na2 {[%emt 0:00:09]} 50. Rc2 {[%emt 0:01:07]} g5 {[%emt 0:02:37]} 51. b3 {[%emt 0:01:13]} Nb4 {[%emt 0:00:57]} 52. axb4 {[%emt 0:00:06]} Rxb4 {[%emt 0:00:49]} 53. Ra2 {[%emt 0:00:17]} Rb7 {[%emt 0:02:39]} 54. Ra6 {[%emt 0:00:47]} Rc7 {[%emt 0:01:34]} 55. Kd3 {[%emt 0:00:40]} Kf6 {[%emt 0:03:29]} 56. Ke3 {[%emt 0:01:35]} Rc8 {[%emt 0:00:46]} 57. Ra5 {[%emt 0:01:09]} Rc6 {[%emt 0:00:47]} 58. Rb5 {[%emt 0:00:12]} gxf4+ {[%emt 0:01:59]} 59. gxf4 {[%emt 0:00:14]} e5 {[%emt 0:00:25]} 60. fxe5+ {[%emt 0:00:17]} Kxe5 $18 {[%emt 0:00:03]} 61. b4 {[%emt 0:00:25]} f4+ {[%emt 0:00:16]} 62. Kf3 {[%emt 0:00:03]} Kd4 {[%emt 0:01:35]} 63. Rxc5 {[%emt 0:00:23]} Rxc5 {[%emt 0:02:37]} 64. bxc5 {[%emt 0:00:01]} Kxc5 {[%emt 0:00:03]} 65. Kxf4 {[%emt 0:00:12]} Kd6 {[%emt 0:00:26]} 1-0

[Event "28th WSCC Women 65 2018"]
[Site "Bled"]
[Date "2018.11.22"]
[Round "5"]
[White "Serjmyadag, Damdin"]
[Black "Sorokina, Tamara"]
[Result "1/2-1/2"]
[ECO "B41"]
[WhiteElo "1864"]
[BlackElo "2058"]
[Annotator "NA RC"]
[PlyCount "76"]
[EventDate "2018.11.17"]
[EventType "swiss"]
[EventCountry "SLO"]
[SourceTitle "playchess.com"]
[Source "ChessBase"]
[SourceQuality "1"]
[TimeControl "40/5400+30:1800+30"]

1. e4 {[%emt 0:00:00]} e6 {[%emt 0:00:00]} 2. d4 {[%emt 0:00:07]} c5 {[%emt 0:00:00]} 3. Nf3 {[%emt 0:02:01]} cxd4 {[%emt 0:00:00]} 4. Nxd4 {[%emt 0:00:11]} a6 {[%emt 0:00:00]} 5. Be3 {[%emt 0:00:33]} Ne7 {[%emt 0:00:05] B41: Sicilian: Kan Variation: 5 c4} 6. Bd3 {[%emt 0:00:33]} Nbc6 {[%emt 0:00:12]} (6... Nec6 7. Nd2 Nxd4 8. Bxd4 Nc6 9. Bc3 b5 10. b3 Bb4 11. Bxg7 Rg8 12. Bb2 Rxg2 13. Qh5 Bb7 {½-½ (56) Shirov,A (2631)-Artemiev,V (2691) Moscow 2017}) 7. c3 {[%emt 0:00:28]} d5 {[%emt 0:00:24]} 8. O-O {[%emt 0:04:33]} Nxd4 {[%emt 0:04:41]} 9. Bxd4 {[%emt 0:03:42]} Nc6 {[%emt 0:00:07]} 10. e5 $146 {[%emt 0:09:55]} ({Predecessor:} 10. Be3 dxe4 11. Bxe4 Bd6 12. Qh5 Qc7 13. Nd2 Ne5 14. Bc2 g6 {0-1 (37) Aitbayev,A (2321)-Kotsur,P (2562) Astana 2011}) 10... Nxd4 {[%emt 0:02:22]} 11. cxd4 {[%emt 0:00:11]} Qb6 {[%emt 0:00:45]} 12. Qd2 {[%emt 0:00:24]} Be7 {[%emt 0:00:18]} 13. Nc3 {[%emt 0:01:00]} Bd7 {[%emt 0:00:07]} 14. Ne2 {[%emt 0:04:19]} O-O {[%emt 0:00:41]} 15. Rab1 {[%emt 0:04:46]} Rac8 {[%emt 0:00:39]} 16. Nc3 {[%emt 0:00:38]} g6 {[%emt 0:04:27]} 17. Be2 {[%emt 0:02:54]} Rc7 {[%emt 0:02:16]} 18. a3 {[%emt 0:01:42]} Rfc8 {[%emt 0:00:24]} 19. f4 {[%emt 0:02:48]} f5 {[%emt 0:05:59]} 20. g4 {[%emt 0:08:07]} Be8 {[%emt 0:01:38]} 21. Kh1 {[%emt 0:02:44]} Kh8 {[%emt 0:00:18]} 22. gxf5 {[%emt 0:03:06]} gxf5 {[%emt 0:00:05]} 23. Rg1 {[%emt 0:00:24]} Bf7 {[%emt 0:00:19]} 24. Qe3 {[%emt 0:02:58]} Bf8 {[%emt 0:02:40]} 25. Bd3 {[%emt 0:07:30]} Bg6 {[%emt 0:00:53]} 26. Be2 {[%emt 0:00:55]} Rg7 {[%emt 0:02:40]} 27. b4 {[%emt 0:02:15]} Qc6 {[%emt 0:01:00]} 28. Rbc1 {[%emt 0:00:36]} Qe8 {[%emt 0:00:17]} 29. Bf3 {[%emt 0:00:46]} Rgc7 {[%emt 0:02:02]} 30. Ne2 {[%emt 0:03:41]} Bh6 {[%emt 0:08:28]} 31. Rc5 {[%emt 0:04:30]} Bf8 {[%emt 0:01:47]} 32. Rxc7 {[%emt 0:02:22]} Rxc7 {[%emt 0:00:02]} 33. Rc1 {[%emt 0:01:38]} Rg7 {[%emt 0:00:41]} 34. Ng3 {[%emt 0:01:17]} Rd7 {[%emt 0:02:27]} 35. Rc3 {[%emt 0:00:39]} Bh6 {[%emt 0:00:21]} 36. Qc1 {[%emt 0:00:25]} Kg7 {[%emt 0:00:32]} 37. Kg2 {[%emt 0:05:01]} Qe7 {[%emt 0:01:15]} 38. Rc8 $11 {[%emt 0:05:11]} Bf7 {[%emt 0:01:46]} 1/2-1/2

[Event "28th WSCC Women 65 2018"]
[Site "Bled"]
[Date "2018.11.23"]
[Round "6"]
[White "Sorokina, Tamara"]
[Black "Tsifanskaya, Ludmila A"]
[Result "1/2-1/2"]
[ECO "D05"]
[WhiteElo "2058"]
[BlackElo "1996"]
[Annotator "NA RC"]
[PlyCount "26"]
[EventDate "2018.11.17"]
[EventType "swiss"]
[EventCountry "SLO"]
[SourceTitle "playchess.com"]
[Source "ChessBase"]
[SourceQuality "1"]
[TimeControl "40/5400+30:1800+30"]

{[%evp 14,26,0,6,0,0,0,-8,3,-42,-54,-22,0,0,0]} 1. d4 Nf6 2. Nd2 e6 3. Ngf3 c5 4. e3 b6 5. Bd3 Bb7 6. O-O Be7 7. c3 d5 8. b3 O-O 9. Bb2 {LiveBook: 3 Games} Nc6 10. Qe2 Qc7 11. e4 dxe4 $15 12. Nxe4 Nxe4 13. Bxe4 Rad8 1/2-1/2

[Event "28th WSCC Women 65 2018"]
[Site "Bled"]
[Date "2018.11.23"]
[Round "6"]
[White "Tsygankova, Enni"]
[Black "Dotan, Valeria"]
[Result "0-1"]
[ECO "A45"]
[WhiteElo "1760"]
[BlackElo "1883"]
[Annotator "NA RC"]
[PlyCount "64"]
[EventDate "2018.11.17"]
[EventType "swiss"]
[EventCountry "SLO"]
[SourceTitle "playchess.com"]
[Source "ChessBase"]
[SourceQuality "1"]
[TimeControl "40/5400+30:1800+30"]

{[%evp 8,58,22,32,33,8,9,6,32767,14,32767,-2,10,6,18,9,20,0,6,25,46,41,59,65,72,55,56,58,75,26,55,-66,-53,-60,-56,-58,-59,-64,-58,-70,-63,-109,32767,32767,32767,32767,-122,-249,-267,-214,-255,-258,-272]} 1. d4 Nf6 2. Bf4 e6 3. e3 d6 {A45: Trompowsky Attack} (3... c5 4. Nd2 cxd4 5. exd4 Be7 6. Ngf3 O-O 7. Bd3 b6 8. O-O Bb7 9. Re1 d6 10. c3 a6 11. Ng5 h6 12. Nge4 Nxe4 13. Nxe4 Bxe4 14. Bxe4 d5 15. Bc2 Bg5 16. Qd3 g6 17. Rxe6 {1-0 (17) Aronian,L (2767)-Giri,A (2782) chess.com INT 2018}) 4. h3 Be7 5. Nf3 b6 6. Be2 Bb7 {LiveBook: 6 Games} 7. O-O h6 8. Nbd2 O-O 9. a3 $146 ({Predecessor:} 9. c3 Nbd7 10. Qc2 c5 11. Rad1 cxd4 12. exd4 Nd5 13. Bh2 f5 14. a3 {1-0 (37) Gerecs,I-Horvath,J (2210) Hungary 2007}) 9... Nbd7 10. c3 Re8 11. Rc1 Bf8 12. Bh2 g6 13. Qc2 Bg7 14. e4 Nh7 15. e5 dxe5 16. Nxe5 Nxe5 17. dxe5 Qe7 18. Nf3 Ng5 19. Qd3 (19. Nd4 $14) 19... Rad8 20. Qe3 Nxf3+ 21. Bxf3 Bxf3 22. Qxf3 Rd2 23. Rb1 Red8 24. Rfd1 Qd7 25. Rxd2 Qxd2 26. Bf4 Qc2 27. Rc1 (27. Re1 $17) 27... Qxb2 28. a4 g5 29. Be3 Bxe5 $19 30. Rd1 Rxd1+ 31. Qxd1 Qxc3 32. g3 Qa1 0-1

[Event "28th WSCC Women 65 2018"]
[Site "Bled"]
[Date "2018.11.25"]
[Round "7"]
[White "Gaprindashvili, Nona"]
[Black "Kozlovskaya, Valentina"]
[Result "1-0"]
[ECO "A44"]
[WhiteElo "2301"]
[BlackElo "2154"]
[Annotator "NA"]
[PlyCount "109"]
[EventDate "2018.11.17"]
[EventType "swiss"]
[EventCountry "SLO"]
[SourceTitle "playchess.com"]
[Source "ChessBase"]
[SourceQuality "1"]
[TimeControl "40/5400+30:1800+30"]

1. d4 {[%emt 0:00:00]} c5 {[%emt 0:00:09]} 2. d5 {[%emt 0:00:00]} e5 {[%emt 0:00:32]} 3. c4 {[%emt 0:00:00]} d6 {[%emt 0:00:07]} 4. e4 {[%emt 0:00:00]} g6 {[%emt 0:00:47]} 5. Nc3 {[%emt 0:00:17]} Bg7 {[%emt 0:00:45]} 6. Be2 {[%emt 0:00:35]} Nf6 {[%emt 0:01:07]} 7. h4 {[%emt 0:00:34]} h5 {[%emt 0:01:20] E73: King's Indian: Averbakh Variation without 6...c5} (7... Nbd7 8. Bg5 h6 9. Bd2 h5 10. Nf3 Nh7 11. a3 Bf6 12. b4 Be7 13. Rb1 b6 14. Qa4 O-O 15. Bh6 {1-0 (73) Goryachkina,A (2451)-Demchenko,A (2615) Jerusalem 2015}) 8. Nh3 {[%emt 0:00:20]} a6 {[%emt 0:03:49]} 9. a4 {[%emt 0:00:45]} a5 {[%emt 0:02:41]} 10. Ng5 {[%emt 0:00:34]} Na6 $146 {[%emt 0:00:18]} ({Predecessor:} 10... Qe7 11. Nb5 Na6 12. Bd2 b6 13. g3 Bd7 14. Qb3 Bc8 15. Bf1 {1-0 (38) Winterberg,L (2244)-Wilk,W (2067) Eschborn 2013}) 11. f3 {[%emt 0:02:53]} Nc7 {[%emt 0:05:22]} 12. Be3 {[%emt 0:01:49]} b6 {[%emt 0:00:26]} 13. Qd2 {[%emt 0:01:20]} Bd7 {[%emt 0:01:52]} 14. O-O-O {[%emt 0:00:25]} Qe7 {[%emt 0:00:50]} 15. Nh3 {[%emt 0:06:39]} Ng8 {[%emt 0:04:29]} 16. Nf2 {[%emt 0:05:39]} O-O-O {[%emt 0:00:14]} 17. g3 {[%emt 0:05:34]} Bh6 {[%emt 0:01:39]} 18. f4 {[%emt 0:02:28]} f6 {[%emt 0:00:27]} 19. g4 {[%emt 0:06:42]} exf4 {[%emt 0:03:20]} 20. Bxf4 {[%emt 0:00:18]} g5 {[%emt 0:00:48]} 21. Be3 {[%emt 0:01:39]} gxh4 {[%emt 0:02:06]} 22. Rxh4 {[%emt 0:00:42]} Bg5 {[%emt 0:08:19]} 23. Rxh5 {[%emt 0:01:29]} Rxh5 {[%emt 0:00:54]} 24. gxh5 {[%emt 0:00:02]} Nh6 {[%emt 0:03:43]} 25. Rg1 {[%emt 0:10:44]} Rg8 {[%emt 0:06:09]} 26. Nd3 {[%emt 0:04:57]} Ne8 {[%emt 0:03:05]} 27. Bxg5 {[%emt 0:07:01]} Rxg5 {[%emt 0:02:42]} 28. Rf1 {[%emt 0:04:45]} Qg7 {[%emt 0:10:31]} 29. Kc2 {[%emt 0:05:30]} Nf7 {[%emt 0:03:09]} 30. Nf4 {[%emt 0:01:18]} Ne5 {[%emt 0:06:52]} 31. Kb3 {[%emt 0:00:26]} Rg3 {[%emt 0:04:14]} 32. Qe1 {[%emt 0:01:44]} Rg5 {[%emt 0:01:56]} 33. Qh4 {[%emt 0:04:16]} Qh6 {[%emt 0:00:01]} 34. Ne6 {[%emt 0:11:54]} Bxe6 {[%emt 0:00:42]} 35. dxe6 {[%emt 0:00:02]} Nc6 {[%emt 0:00:16]} 36. Bg4 {[%emt 0:02:32]} Kb8 {[%emt 0:02:38]} 37. Rf4 {[%emt 0:05:07]} Ka7 {[%emt 0:05:09]} 38. Qf2 {[%emt 0:05:32]} Rg7 {[%emt 0:01:43]} 39. Nd5 {[%emt 0:01:10]} Qg5 {[%emt 0:08:58]} 40. Ka2 {[%emt 0:00:00]} Nb4+ {[%emt 0:00:00]} 41. Nxb4 {[%emt 0:02:19]} axb4 {[%emt 0:01:11]} 42. Be2 {[%emt 0:05:29]} Qe5 {[%emt 0:04:42] [#]} 43. Bg4 $2 {[%emt 0:01:50]} ({White must play} 43. Rg4 $1 $18 {[%cal Rg4g7]} Re7 44. Qf5) 43... Qg5 {[%emt 0:00:26]} 44. Qd2 {[%emt 0:06:08]} Re7 {[%emt 0:03:19]} 45. Qh2 {[%emt 0:02:33]} (45. Bf3 $142) 45... Qh6 $2 {[%emt 0:01:00]} (45... Nc7 $16 {might work better.} 46. Bf5 Nxe6 47. Bxe6 Rxe6) 46. Bf5 {[%emt 0:01:20]} Rg7 {[%emt 0:05:54]} 47. Rf1 {[%emt 0:03:38]} Rg5 {[%emt 0:08:08]} 48. Rh1 {[%emt 0:00:33]} Rg8 {[%emt 0:04:06]} 49. Bg6 {[%emt 0:01:49]} Qf8 {[%emt 0:06:31]} 50. Bxe8 {[%emt 0:00:56]} Qxe8 {[%emt 0:00:01]} 51. Qxd6 {[%emt 0:00:17]} Qxa4+ {[%emt 0:00:55]} 52. Kb1 {[%emt 0:00:08]} b3 {[%emt 0:01:26]} 53. Qd7+ {[%emt 0:01:17]} Qxd7 {[%emt 0:00:09]} 54. exd7 {[%emt 0:00:09]} Kb7 $18 {[%emt 0:00:06]} 55. Rd1 {[%emt 0:00:38]} 1-0